fUSD/lending_fUSD_20241227
["ID","MTS","AMOUNT","RATE_DAILY","PERIOD"]
[346873744,1735336259832,-1348.14,0.00011561,2]
[346873745,1735336259842,-2379.61,0.00011561,2]
[346873746,1735336259851,-1539.31,0.00011561,2]
[346873747,1735336259861,-6514.22,0.00011561,2]
[346873748,1735336259870,-4583.19,0.00011561,2]
[346873749,1735336259880,-500.0,0.00011561,2]
[346873750,1735336259889,-601.41,0.00011561,2]
[346873751,1735336259899,-500.0,0.00011561,2]
[346873752,1735336259909,-588.01,0.00011561,2]
[346873753,1735336259918,-521.44,0.00011561,2]
[346873754,1735336259928,-500.0,0.00011561,2]
[346873755,1735336259937,-584.63,0.00011561,2]
[346873756,1735336259946,-500.0,0.00011561,2]
[346873757,1735336259957,-1892.34,0.00011561,2]
[346873758,1735336259967,-610.67,0.00011561,2]
[346873759,1735336259976,-500.0,0.00011561,2]
[346873760,1735336259985,-500.0,0.00011561,2]
[346873761,1735336259994,-507.02,0.00011561,2]
[346873762,1735336260004,-500.0,0.00011561,2]
[346873763,1735336260013,-500.0,0.00011561,2]
[346873764,1735336260022,-9987.57,0.00011561,2]
[346873765,1735336260032,-500.0,0.00011561,2]
[346873766,1735336260041,-633.36,0.00011561,2]
[346873767,1735336260051,-500.0,0.00011561,2]
[346873768,1735336260062,-500.0,0.00011561,2]
[346873769,1735336260072,-500.0,0.00011561,2]
[346873770,1735336260082,-500.0,0.00011561,2]
[346873771,1735336260091,-694.31,0.00011561,2]
[346873772,1735336260101,-500.0,0.00011561,2]
[346873773,1735336260111,-681.38,0.00011561,2]
[346873774,1735336260120,-500.0,0.00011561,2]
[346873775,1735336260130,-500.0,0.00011561,2]
[346873776,1735336260139,-500.0,0.00011561,2]
[346873777,1735336260153,-765.4,0.00011561,2]
[346873778,1735336260163,-500.0,0.00011561,2]
[346873779,1735336260172,-803.37,0.00011561,2]
[346873780,1735336260182,-500.0,0.00011561,2]
[346873781,1735336260193,-502.16,0.00011561,2]
[346873782,1735336260202,-500.0,0.00011561,2]
[346873783,1735336260212,-732.69,0.00011561,2]
[346873784,1735336260224,-500.0,0.00011561,2]
[346873785,1735336260234,-500.64348401,0.00011561,2]
[346873786,1735336260244,-500.0,0.00011561,2]
[346873787,1735336260254,-659.83,0.00011561,2]
[346873788,1735336260263,-500.0,0.00011561,2]
[346873789,1735336260273,-1366.87,0.00011561,2]
[346873790,1735336260283,-500.0,0.00011561,2]
[346873791,1735336260292,-595.6,0.00011561,2]
[346873792,1735336260302,-500.0,0.00011561,2]
[346873793,1735336260311,-500.0,0.00011561,2]
[346873794,1735336260320,-500.0,0.00011561,2]
[346873795,1735336260329,-609.19,0.00011561,2]
[346873796,1735336260339,-1051.26,0.00011561,2]
[346873797,1735336260348,-805.68,0.00011561,2]
[346873798,1735336260358,-557.4,0.00011561,2]
[346873799,1735336260367,-791.28,0.00011561,2]
[346873800,1735336260376,-500.0,0.00011561,2]
[346873801,1735336260386,-1478.37948,0.00011561,2]
[346873802,1735336260396,-1126.95,0.00011561,2]
[346873803,1735336260405,-731.1,0.00011561,2]
[346873804,1735336260416,-752.15,0.00011561,2]
[346873805,1735336260425,-500.0,0.00011561,2]
[346873806,1735336260434,-500.0,0.00011561,2]
[346873807,1735336260444,-1550.85,0.00011561,2]
[346873808,1735336260454,-601.57,0.00011561,2]
[346873809,1735336260463,-7603.11,0.00011561,2]
[346873810,1735336260476,-690.9,0.00011561,2]
[346873811,1735336260488,-927.58,0.00011561,2]
[346873812,1735336260501,-799.923696,0.00011561,2]
[346873813,1735336260513,-1058.16,0.00011561,2]
[346873814,1735336260524,-638.13,0.00011561,2]
[346873815,1735336260535,-693.37187,0.00011561,2]
[346873816,1735336260545,-500.0,0.00011561,2]
[346873817,1735336260556,-1010.75,0.00011561,2]
[346873818,1735336260568,-3832.11,0.00011561,2]
[346873819,1735336260580,-559.24,0.00011561,2]
[346873820,1735336260592,-1002.16,0.00011561,2]
[346873821,1735336260603,-759.49,0.00011561,2]
[346873822,1735336260615,-1522.12,0.00011561,2]
[346873823,1735336260627,-1655.0,0.00011561,2]
[346873824,1735336260638,-592.24,0.00011561,2]
[346873825,1735336260651,-660.86,0.00011561,2]
[346873826,1735336260662,-1674.62,0.00011561,2]
[346873827,1735336260673,-500.0,0.00011561,2]
[346873828,1735336260684,-599.88,0.00011561,2]
[346873829,1735336260695,-3239.99,0.00011561,2]
[346873830,1735336260706,-3517.2,0.00011561,2]
[346873831,1735336260717,-500.0,0.00011561,2]
[346873832,1735336260728,-500.0,0.00011561,2]
[346873833,1735336260740,-935.57,0.00011561,2]
[346873834,1735336260753,-1678.05,0.00011561,2]
[346873835,1735336260764,-3183.31,0.00011561,2]
[346873836,1735336260776,-854.24,0.00011561,2]
[346873837,1735336260787,-994.83420099,0.00011561,2]
[346873838,1735336260859,-1155.3792788,0.00011561,2]
[346873839,1735336260970,-2915.49652021,0.00011561,2]
[346873840,1735336260982,-1753.89102979,0.00011561,2]
[346873841,1735336261864,-500.0,0.00010465,2]
[346873842,1735336261875,-1405.35,0.00010739,2]
[346873843,1735336261887,-500.0,0.00010739,2]
[346873844,1735336261899,-1405.35,0.00011013,2]
[346873845,1735336261911,-500.0,0.00011013,2]
[346873846,1735336261922,-919.56,0.00011286,2]
[346873847,1735336261933,-556.85,0.00011287,2]
[346873848,1735336261944,-500.0,0.00011287,2]
[346873849,1735336261955,-919.56,0.0001156,2]
[346873850,1735336261970,-485.10897021,0.00011561,2]
[346873851,1735336261981,-525.3,0.00011561,2]
[346873852,1735336261994,-818.32,0.00011561,2]
[346873853,1735336262006,-957.86,0.00011561,2]
[346873854,1735336262017,-1701.48,0.00011561,2]
[346873855,1735336262028,-615.44,0.00011561,2]
[346873856,1735336262040,-1122.53,0.00011561,2]
[346873857,1735336262051,-855.23,0.00011561,2]
[346873858,1735336262063,-1041.51,0.00011561,2]
[346873859,1735336262074,-1925.05,0.00011561,2]
[346873860,1735336262086,-4580.88,0.00011561,2]
[346873861,1735336262097,-530.09,0.00011561,2]
[346873862,1735336262109,-2926.65,0.00011561,2]
[346873863,1735336262120,-1652.43,0.00011561,2]
[346873864,1735336262132,-506.96,0.00011561,2]
[346873865,1735336262150,-606.93,0.00011561,2]
[346873866,1735336262166,-999.73,0.00011561,2]
[346873867,1735336262177,-2362.14,0.00011561,2]
[346873868,1735336262189,-821.05,0.00011561,2]
[346873869,1735336262200,-1414.13,0.00011561,2]
[346873870,1735336262211,-7044.73,0.00011561,2]
[346873871,1735336262222,-686.27,0.00011561,2]
[346873872,1735336262233,-500.0,0.00011561,2]
[346873873,1735336262244,-646.97,0.00011561,2]
[346873874,1735336262256,-500.0,0.00011561,2]
[346873875,1735336262267,-2139.42,0.00011561,2]
[346873876,1735336262278,-900.32,0.00011561,2]
[346873877,1735336262290,-1232.83,0.00011561,2]
[346873878,1735336262300,-619.54,0.00011561,2]
[346873879,1735336262312,-2506.77,0.00011561,2]
[346873880,1735336262323,-183.75771221,0.00011561,2]
[346873881,1735336262337,-373.09228779,0.00011561,2]
[346873882,1735336262348,-183.62104962,0.00011561,2]
[346873883,1735336262385,-1405.35,0.00011287,2]
[346873884,1735336262397,-316.37895038,0.00011561,2]
[346873885,1735336262410,-569.4,0.00011562,2]
[346873886,1735336262422,-906.66,0.00011562,2]
[346873887,1735336262434,-395.68939945,0.00011562,2]
[346873888,1735336262447,-104.31060055,0.00011562,2]
[346873889,1735336262459,-1024.73,0.00011562,2]
[346873890,1735336262471,-598.13,0.00011562,2]
[346873891,1735336262483,-19.16180725,0.00011562,2]
[346873892,1735336262497,-718.42819275,0.00011562,2]
[346873893,1735336262508,-985.21,0.00011562,2]
[346873894,1735336262520,-724.58,0.00011562,2]
[346873895,1735336262531,-567.32,0.00011562,2]
[346873896,1735336262541,-726.25,0.00011562,2]
[346873897,1735336262552,-615.69,0.00011562,2]
[346873898,1735336262562,-642.68212719,0.00011562,2]
[346873899,1735336262576,-1065.43787281,0.00011562,2]
[346873900,1735336262586,-1184.29,0.00011562,2]
[346873901,1735336262596,-548.56,0.00011562,2]
[346873902,1735336262607,-1426.63,0.00011562,2]
[346873903,1735336262617,-553.77,0.00011562,2]
[346873904,1735336262627,-780.99,0.00011562,2]
[346873905,1735336262639,-776.14,0.00011562,2]
[346873906,1735336262649,-500.0,0.00011562,2]
[346873907,1735336262660,-1224.21,0.00011562,2]
[346873908,1735336262671,-520.15,0.00011562,2]
[346873909,1735336262682,-716.45,0.00011562,2]
[346873910,1735336262693,-1851.87408839,0.00011563,2]
[346873911,1735336262706,-12593.84368665,0.00011563,2]
[346873912,1735336262720,-1600.97222496,0.00011563,2]
[346873913,1735336262731,-620.78,0.00011563,2]
[346873914,1735336262743,-2041.8,0.00011563,2]
[346873915,1735336262754,-1627.58,0.00011563,2]
[346873916,1735336262765,-1382.57,0.00011563,2]
[346873917,1735336262775,-3200.02,0.00011563,2]
[346873918,1735336262787,-510.79,0.00011563,2]
[346873919,1735336262798,-1065.28,0.00011563,2]
[346873920,1735336262809,-1200.97,0.00011563,2]
[346873921,1735336262820,-868.67,0.00011563,2]
[346873922,1735336262830,-3048.93,0.00011563,2]
[346873923,1735336262840,-2042.82,0.00011563,2]
[346873924,1735336262850,-638.96087451,0.00011575,2]
[346873925,1735336262860,-225.79633462,0.0001163,2]
[346873926,1735336262870,-2700.0,0.00011654,4]
[346873927,1735336262881,-1500.0,0.000117,4]
[346873928,1735336262891,-187.0,0.00011767,2]
[346873929,1735336262901,-187.0,0.00011767,2]
[346873930,1735336262911,-187.0,0.00011767,2]
[346873931,1735336262921,-162.0,0.00011767,2]
[346873932,1735336262930,-189.0,0.00011767,2]
[346873933,1735336262940,-162.0,0.00011767,2]
[346873934,1735336262949,-162.0,0.00011767,2]
[346873935,1735336262959,-209.26861641,0.00011774,2]
[346873936,1735336262968,-260.0,0.0001179,2]
[346873937,1735336262978,-184.24088894,0.000118,2]
[346873938,1735336262988,-1800.0,0.000118,4]
[346873939,1735336262998,-461.69877753,0.00011834,2]
[346873940,1735336263007,-513.86,0.00011834,2]
[346873941,1735336263017,-500.0,0.00011834,2]
[346873942,1735336263027,-500.0,0.00011834,2]
[346873943,1735336263036,-500.0,0.00011834,2]
[346873944,1735336263046,-500.0,0.00011834,2]
[346873945,1735336263056,-500.0,0.00011834,2]
[346873946,1735336263065,-523.19,0.00011834,2]
[346873947,1735336263075,-500.0,0.00011834,2]
[346873948,1735336263085,-517.22,0.00011834,2]
[346873949,1735336263095,-415.60049227,0.00011834,2]
[346873950,1735336263105,-500.0,0.00011834,2]
[346873951,1735336263115,-500.0,0.00011834,2]
[346873952,1735336263125,-500.0,0.00011834,2]
[346873953,1735336263137,-500.0,0.00011834,2]
[346873954,1735336263149,-500.0,0.00011834,2]
[346873955,1735336263159,-641.74,0.00011834,2]
[346873956,1735336263169,-524.58,0.00011834,2]
[346873957,1735336263600,-500.0,0.00011834,2]
[346873958,1735336263620,-500.0,0.00011834,2]
[346873959,1735336263640,-500.0,0.00011834,2]
[346873960,1735336263650,-777.86,0.00011834,2]
[346873961,1735336263660,-500.0,0.00011834,2]
[346873962,1735336263670,-656.88,0.00011834,2]
[346873963,1735336263680,-500.0,0.00011834,2]
[346873964,1735336263690,-500.0,0.00011834,2]
[346873965,1735336263700,-500.0,0.00011834,2]
[346873966,1735336263710,-500.0,0.00011834,2]
[346873967,1735336263722,-500.0,0.00011834,2]
[346873968,1735336263733,-500.0,0.00011834,2]
[346873969,1735336263744,-500.0,0.00011834,2]
[346873970,1735336263754,-500.0,0.00011834,2]
[346873971,1735336263768,-500.0,0.00011834,2]
[346873972,1735336263779,-500.0,0.00011834,2]
[346873973,1735336263790,-500.0,0.00011834,2]
[346873974,1735336263800,-500.0,0.00011834,2]
[346873975,1735336263810,-500.0,0.00011834,2]
[346873976,1735336263822,-500.0,0.00011834,2]
[346873977,1735336263840,-628.28,0.00011834,2]
[346873978,1735336263851,-500.0,0.00011834,2]
[346873979,1735336263862,-500.0,0.00011834,2]
[346873980,1735336263874,-500.0,0.00011834,2]
[346873981,1735336263889,-500.0,0.00011834,2]
[346873982,1735336263899,-500.0,0.00011834,2]
[346873983,1735336263908,-643.04,0.00011834,2]
[346873984,1735336263920,-500.0,0.00011834,2]
[346873985,1735336263932,-500.0,0.00011834,2]
[346873986,1735336263945,-500.0,0.00011834,2]
[346873987,1735336263955,-500.0,0.00011834,2]
[346873988,1735336263968,-739.17,0.00011834,2]
[346873989,1735336263983,-504.48,0.00011834,2]
[346873990,1735336263992,-500.0,0.00011834,2]
[346873991,1735336264004,-500.0,0.00011834,2]
[346873992,1735336264016,-500.0,0.00011834,2]
[346873993,1735336264030,-647.03,0.00011834,2]
[346873994,1735336264043,-1024.8,0.00011834,2]
[346873995,1735336264055,-500.0,0.00011834,2]
[346873996,1735336264065,-500.0,0.00011834,2]
[346873997,1735336264078,-500.0,0.00011834,2]
[346873998,1735336264090,-500.0,0.00011834,2]
[346873999,1735336264100,-884.78,0.00011834,2]
[346874000,1735336264111,-500.0,0.00011834,2]
[346874001,1735336264124,-534.19,0.00011834,2]
[346874002,1735336264136,-500.0,0.00011834,2]
[346874003,1735336264149,-76.96534469,0.00011834,2]
[346874004,1735336264163,-542.03465531,0.00011834,2]
[346874005,1735336264173,-559.94777137,0.00011834,2]
[346874006,1735336264199,-82.48222863,0.00011834,2]
[346874007,1735336264209,-440.19777195,0.00011834,2]
[346874008,1735336264225,-207.70222805,0.00011834,2]
[346874009,1735336264236,-529.8,0.00011834,2]
[346874010,1735336264246,-500.0,0.00011834,2]
[346874011,1735336264255,-619.96,0.00011834,2]
[346874012,1735336264265,-697.56,0.00011834,2]
[346874013,1735336264275,-500.0,0.00011834,2]
[346874014,1735336264284,-500.0,0.00011834,2]
[346874015,1735336264294,-644.16,0.00011834,2]
[346874016,1735336264303,-851.46,0.00011834,2]
[346874017,1735336264313,-657.13,0.00011834,2]
[346874018,1735336264322,-500.0,0.00011834,2]
[346874019,1735336264332,-500.0,0.00011834,2]
[346874020,1735336264342,-519.03,0.00011834,2]
[346874021,1735336264351,-500.0,0.00011834,2]
[346874022,1735336264360,-500.0,0.00011834,2]
[346874023,1735336264370,-500.0,0.00011834,2]
[346874024,1735336264380,-500.0,0.00011834,2]
[346874025,1735336264391,-500.0,0.00011834,2]
[346874026,1735336264400,-603.78,0.00011834,2]
[346874027,1735336264410,-901.23,0.00011834,2]
[346874028,1735336264420,-500.0,0.00011834,2]
[346874029,1735336264430,-500.0,0.00011834,2]
[346874030,1735336264439,-640.42,0.00011834,2]
[346874031,1735336264449,-562.23,0.00011834,2]
[346874032,1735336264458,-500.0,0.00011834,2]
[346874033,1735336264469,-500.0,0.00011834,2]
[346874034,1735336264478,-500.0,0.00011834,2]
[346874035,1735336264488,-500.0,0.00011834,2]
[346874036,1735336264497,-500.0,0.00011834,2]
[346874037,1735336264507,-814.14,0.00011834,2]
[346874038,1735336264516,-500.0,0.00011834,2]
[346874039,1735336264525,-730.18,0.00011834,2]
[346874040,1735336264534,-500.0,0.00011834,2]
[346874041,1735336264544,-500.0,0.00011834,2]
[346874042,1735336264553,-500.0,0.00011834,2]
[346874043,1735336264563,-688.13,0.00011834,2]
[346874044,1735336264572,-500.0,0.00011834,2]
[346874045,1735336264582,-960.67,0.00011834,2]
[346874046,1735336264592,-625.0,0.00011834,2]
[346874047,1735336264601,-500.0,0.00011834,2]
[346874048,1735336264610,-500.0,0.00011834,2]
[346874049,1735336264619,-500.0,0.00011834,2]
[346874050,1735336264628,-500.0,0.00011834,2]
[346874051,1735336264638,-645.20482814,0.00011834,2]
[346874052,1735336264648,-500.0,0.00011834,2]
[346874053,1735336264657,-537.8,0.00011834,2]
[346874054,1735336264666,-500.0,0.00011834,2]
[346874055,1735336264675,-809.76,0.00011834,2]
[346874056,1735336264685,-500.0,0.00011834,2]
[346874057,1735336264695,-500.0,0.00011834,2]
[346874058,1735336264704,-500.0,0.00011834,2]
[346874059,1735336264714,-500.0,0.00011834,2]
[346874060,1735336264723,-277.48913706,0.00011834,2]
[346874061,1735336264735,-674.04086294,0.00011834,2]
[346874062,1735336264744,-500.0,0.00011834,2]
[346874063,1735336264754,-500.0,0.00011834,2]
[346874064,1735336264763,-526.65,0.00011834,2]
[346874065,1735336264773,-500.0,0.00011834,2]
[346874066,1735336264782,-1333.41,0.00011834,2]
[346874067,1735336264792,-500.0,0.00011834,2]
[346874068,1735336264801,-500.0,0.00011834,2]
[346874069,1735336264811,-572.12,0.00011834,2]
[346874070,1735336264821,-500.0,0.00011834,2]
[346874071,1735336264830,-852.62,0.00011834,2]
[346874072,1735336264839,-500.0,0.00011834,2]
[346874073,1735336264848,-500.0,0.00011834,2]
[346874074,1735336264858,-669.16,0.00011834,2]
[346874075,1735336264867,-500.0,0.00011834,2]
[346874076,1735336264876,-500.0,0.00011834,2]
[346874077,1735336264886,-1530.35,0.00011834,2]
[346874078,1735336264896,-1249.53,0.00011834,2]
[346874079,1735336264906,-500.0,0.00011834,2]
[346874080,1735336264915,-500.0,0.00011834,2]
[346874081,1735336264924,-500.0,0.00011834,2]
[346874082,1735336264934,-500.0,0.00011834,2]
[346874083,1735336264943,-1010.19,0.00011834,2]
[346874084,1735336264953,-500.0,0.00011834,2]
[346874085,1735336264962,-899.21,0.00011834,2]
[346874086,1735336264972,-1395.55,0.00011834,2]
[346874087,1735336264982,-500.0,0.00011834,2]
[346874088,1735336264991,-955.53,0.00011834,2]
[346874089,1735336265001,-500.0,0.00011834,2]
[346874090,1735336265011,-553.07962189,0.00011834,2]
[346874091,1735336265020,-675.8,0.00011834,2]
[346874092,1735336265030,-1659.52,0.00011834,2]
[346874093,1735336265040,-500.0,0.00011834,2]
[346874094,1735336265049,-500.0,0.00011834,2]
[346874095,1735336265059,-500.0,0.00011834,2]
[346874096,1735336265069,-565.96,0.00011834,2]
[346874097,1735336265078,-2114.0,0.00011834,2]
[346874098,1735336265087,-10774.56,0.00011834,2]
[346874099,1735336265099,-1052.06,0.00011834,2]
[346874100,1735336265109,-500.0,0.00011834,2]
[346874101,1735336265118,-500.0,0.00011834,2]
[346874102,1735336265128,-500.0,0.00011834,2]
[346874103,1735336265139,-500.0,0.00011834,2]
[346874104,1735336265152,-602.1,0.00011834,2]
[346874105,1735336265161,-624.87813095,0.00011834,2]
[346874106,1735336265171,-592.67,0.00011834,2]
[346874107,1735336265181,-500.0,0.00011834,2]
[346874108,1735336265191,-500.0,0.00011834,2]
[346874109,1735336265201,-500.0,0.00011834,2]
[346874110,1735336265211,-500.0,0.00011834,2]
[346874111,1735336265222,-1880.76,0.00011834,2]
[346874112,1735336265233,-1083.23,0.00011834,2]
[346874113,1735336265243,-541.17,0.00011834,2]
[346874114,1735336265253,-1792.16,0.00011834,2]
[346874115,1735336265262,-1044.48,0.00011834,2]
[346874116,1735336265271,-500.0,0.00011834,2]
[346874117,1735336265281,-500.0,0.00011834,2]
[346874118,1735336265291,-518.59,0.00011834,2]
[346874119,1735336265300,-5794.82,0.00011834,2]
[346874120,1735336265310,-500.0,0.00011834,2]
[346874121,1735336265320,-500.0,0.00011834,2]
[346874122,1735336265330,-922.22,0.00011834,2]
[346874123,1735336265340,-1317.36,0.00011834,2]
[346874124,1735336265352,-1665.0,0.00011834,2]
[346874125,1735336265361,-500.0,0.00011834,2]
[346874126,1735336265371,-868.91,0.00011834,2]
[346874127,1735336265380,-564.22,0.00011834,2]
[346874128,1735336265391,-2374.65,0.00011834,2]
[346874129,1735336265401,-511.85,0.00011834,2]
[346874130,1735336265410,-619.78,0.00011834,2]
[346874131,1735336265419,-1805.44,0.00011834,2]
[346874132,1735336265428,-433.78079041,0.00011834,2]
[346874133,1735336265436,-3221.16,0.00011834,2]
[346874134,1735336265446,-500.0,0.00011834,2]
[346874135,1735336265455,-1146.64,0.00011834,2]
[346874136,1735336265464,-500.0,0.00011834,2]
[346874137,1735336265473,-153.06305899,0.00011834,2]
[346874138,1735336265485,-371.13694101,0.00011834,2]
[346874139,1735336265494,-233.18046711,0.00011834,2]
[346874140,1735336265503,-500.0,0.00011834,2]
[346874141,1735336265513,-500.0,0.00011834,2]
[346874142,1735336265521,-711.62879188,0.00011834,2]
[346874143,1735336265532,-475.8703,0.00011834,2]
[346874144,1735336265543,-971.75090812,0.00011834,2]
[346874145,1735336265553,-506.33,0.00011834,2]
[346874146,1735336265563,-3281.47545334,0.00011834,2]
[346874147,1735336265574,-875.76454666,0.00011834,2]
[346874148,1735336265583,-41.4850487,0.00011834,2]
[346874149,1735336265594,-507.7049513,0.00011834,2]
[346874150,1735336265605,-2208.58,0.00011834,2]
[346874151,1735336265615,-4287.51,0.00011834,2]
[346874152,1735336265625,-493.76358532,0.00011834,2]
[346874153,1735336265644,-6.23641468,0.00011834,2]
[346874154,1735336265654,-304.26358532,0.00011834,2]
[346874155,1735336265666,-195.73641468,0.00011834,2]
[346874156,1735336265676,-483.54332006,0.00011834,2]
[346874157,1735336266062,-456.875,0.00010934,2]
[346874158,1735336266074,-645.125,0.00010934,2]
[346874159,1735336266085,-1405.35,0.00011561,2]
[346874160,1735336266095,-16.45667994,0.00011834,2]
[346874161,1735336266104,-818.86,0.00011834,2]
[346874162,1735336266114,-680.75,0.00011834,2]
[346874163,1735336266124,-987.63,0.00011834,2]
[346874164,1735336266135,-500.0,0.00011834,2]
[346874165,1735336266146,-686.54,0.00011834,2]
[346874166,1735336266157,-510.42,0.00011834,2]
[346874167,1735336266166,-262.33736213,0.00011834,2]
[346874168,1735336266176,-504.05046017,0.00011834,2]
[346874169,1735336266189,-764.55373,0.00011834,2]
[346874170,1735336266201,-11.97580983,0.00011834,2]
[346874171,1735336266211,-500.0,0.00011834,2]
[346874172,1735336266222,-715.73,0.00011834,2]
[346874173,1735336266232,-175.71810471,0.00011834,2]
[346874174,1735336266248,-422.90000105,0.00011834,2]
[346874175,1735336266261,-2938.37923822,0.00011834,2]
[346874176,1735336266273,-16438.91265602,0.00011834,2]
[346874177,1735336266283,-675.24,0.00011834,2]
[346874178,1735336266294,-2173.54,0.00011834,2]
[346874179,1735336266304,-500.0,0.00011834,2]
[346874180,1735336266314,-500.0,0.00011834,2]
[346874181,1735336266324,-518.2,0.00011834,2]
[346874182,1735336266334,-715.3,0.00011834,2]
[346874183,1735336266344,-1718.84,0.00011834,2]
[346874184,1735336266355,-1645.79,0.00011834,2]
[346874185,1735336266366,-500.0,0.00011834,2]
[346874186,1735336266376,-500.0,0.00011834,2]
[346874187,1735336266390,-919.56,0.00011834,2]
[346874188,1735336266399,-698.98,0.00011835,2]
[346874189,1735336266408,-1447.35,0.00011835,2]
[346874190,1735336266417,-1135.24,0.00011835,2]
[346874191,1735336266426,-500.0,0.00011835,2]
[346874192,1735336266435,-500.0,0.00011835,2]
[346874193,1735336266444,-1446.45,0.00011835,2]
[346874194,1735336266453,-522.04,0.00011835,2]
[346874195,1735336266462,-715.08,0.00011835,2]
[346874196,1735336266471,-1586.47,0.00011835,2]
[346874197,1735336266481,-760.44,0.00011835,2]
[346874198,1735336266491,-1348.14,0.00011835,2]
[346874199,1735336266681,-2379.61,0.00011835,2]
[346874200,1735336266691,-1539.31,0.00011835,2]
[346874201,1735336266701,-6514.22,0.00011835,2]
[346874202,1735336266711,-4583.19,0.00011835,2]
[346874203,1735336266721,-601.41,0.00011835,2]
[346874204,1735336266730,-588.01,0.00011835,2]
[346874205,1735336266740,-521.44,0.00011835,2]
[346874206,1735336266751,-500.0,0.00011835,2]
[346874207,1735336266761,-584.63,0.00011835,2]
[346874208,1735336266771,-500.0,0.00011835,2]
[346874209,1735336266780,-1892.34,0.00011835,2]
[346874210,1735336266790,-610.67,0.00011835,2]
[346874211,1735336266799,-500.0,0.00011835,2]
[346874212,1735336266809,-500.0,0.00011835,2]
[346874213,1735336266819,-507.02,0.00011835,2]
[346874214,1735336266829,-500.0,0.00011835,2]
[346874215,1735336266839,-9987.57,0.00011835,2]
[346874216,1735336266848,-500.0,0.00011835,2]
[346874217,1735336266860,-500.0,0.00011835,2]
[346874218,1735336266870,-37.85976454,0.00011835,2]
[346874219,1735336266883,-595.50023546,0.00011835,2]
[346874220,1735336266893,-500.0,0.00011835,2]
[346874221,1735336266903,-500.0,0.00011835,2]
[346874222,1735336266913,-500.0,0.00011835,2]
[346874223,1735336266923,-500.0,0.00011835,2]
[346874224,1735336266932,-694.31,0.00011835,2]
[346874225,1735336266942,-500.0,0.00011835,2]
[346874226,1735336266951,-681.38,0.00011835,2]
[346874227,1735336266962,-500.0,0.00011835,2]
[346874228,1735336266971,-500.0,0.00011835,2]
[346874229,1735336266981,-500.0,0.00011835,2]
[346874230,1735336266991,-765.4,0.00011835,2]
[346874231,1735336267000,-500.0,0.00011835,2]
[346874232,1735336267009,-803.37,0.00011835,2]
[346874233,1735336267019,-500.0,0.00011835,2]
[346874234,1735336267028,-502.16,0.00011835,2]
[346874235,1735336267038,-500.0,0.00011835,2]
[346874236,1735336267048,-732.69,0.00011835,2]
[346874237,1735336267058,-500.0,0.00011835,2]
[346874238,1735336267068,-500.0,0.00011835,2]
[346874239,1735336267077,-659.83,0.00011835,2]
[346874240,1735336267087,-500.0,0.00011835,2]
[346874241,1735336267097,-1366.87,0.00011835,2]
[346874242,1735336267107,-500.0,0.00011835,2]
[346874243,1735336267116,-595.6,0.00011835,2]